[Event "Early-Titled-Tuesday-Blitz-October-17-2023"]
[Site "Chess.com"]
[Date "2023.10.17"]
[Round "9"]
[White "verrbaa"]
[Black "DKmirl"]
[Result "1-0"]
[WhiteElo "2447"]
[BlackElo "2285"]
[TimeControl "180+1"]
[EndTime "9:47:50 PDT"]
[Termination "verrbaa won by checkmate"]

1. e4 {[%clk 0:02:51.3]} 1... c5 {[%clk 0:02:59.8]} 2. Nf3 {[%clk 0:02:50.7]}
2... Nc6 {[%clk 0:02:57.9]} 3. Nc3 {[%clk 0:02:48.8]} 3... g6 {[%clk 0:02:57.4]}
4. d4 {[%clk 0:02:47.8]} 4... cxd4 {[%clk 0:02:57.4]} 5. Nxd4 {[%clk 0:02:48.5]}
5... Bg7 {[%clk 0:02:58.1]} 6. Nb3 {[%clk 0:02:36.5]} 6... Nf6 {[%clk
0:02:57.3]} 7. Be2 {[%clk 0:02:36.5]} 7... O-O {[%clk 0:02:57.3]} 8. Bg5 {[%clk
0:02:27.9]} 8... d6 {[%clk 0:02:55.9]} 9. Qd2 {[%clk 0:02:27.7]} 9... a6 {[%clk
0:02:45]} 10. a4 {[%clk 0:02:02.2]} 10... Be6 {[%clk 0:02:41.9]} 11. O-O {[%clk
0:01:54]} 11... Bxb3 {[%clk 0:02:39.4]} 12. cxb3 {[%clk 0:01:53.8]} 12... Qb6
{[%clk 0:02:39.6]} 13. Bxf6 {[%clk 0:01:42.9]} 13... Bxf6 {[%clk 0:02:37.6]} 14.
Nd5 {[%clk 0:01:42.5]} 14... Qxb3 {[%clk 0:02:34.9]} 15. Nxf6+ {[%clk 0:01:42]}
15... exf6 {[%clk 0:02:35.6]} 16. Ra3 {[%clk 0:01:40.2]} 16... Qb4 {[%clk
0:02:28.2]} 17. Qh6 {[%clk 0:01:30.9]} 17... g5 {[%clk 0:01:54.4]} 18. Rh3
{[%clk 0:01:24.6]} 18... Rfe8 {[%clk 0:01:45.4]} 19. Qxf6 {[%clk 0:01:19.7]}
19... Re6 {[%clk 0:01:37.6]} 20. Qxg5+ {[%clk 0:01:18.3]} 20... Rg6 {[%clk
0:01:37.7]} 21. Qh5 {[%clk 0:01:13.4]} 21... h6 {[%clk 0:01:30.7]} 22. Rg3
{[%clk 0:01:10.4]} 22... Kg7 {[%clk 0:01:23.4]} 23. Bg4 {[%clk 0:01:01.1]} 23...
Rg5 {[%clk 0:01:12.8]} 24. Bf5 {[%clk 0:00:58.9]} 24... Rxg3 {[%clk 0:00:47.1]}
25. hxg3 {[%clk 0:00:55.9]} 25... Ne5 {[%clk 0:00:46.2]} 26. Rc1 {[%clk
0:00:41]} 26... Qxb2 {[%clk 0:00:39.2]} 27. Rc7 {[%clk 0:00:41]} 27... Qb1+
{[%clk 0:00:34.3]} 28. Kh2 {[%clk 0:00:40.6]} 28... Rf8 {[%clk 0:00:30.8]} 29.
f4 {[%clk 0:00:38.3]} 29... Nd3 {[%clk 0:00:17.1]} 30. Be6 {[%clk 0:00:34.3]}
30... Qb2 {[%clk 0:00:03]} 31. Rxf7+ {[%clk 0:00:33.3]} 31... Rxf7 {[%clk
0:00:01.2]} 32. Qxf7+ {[%clk 0:00:33.5]} 32... Kh8 {[%clk 0:00:01.6]} 33. Qg8#
{[%clk 0:00:33.7]} 1-0

[Event "Early-Titled-Tuesday-Blitz-October-17-2023"]
[Site "Chess.com"]
[Date "2023.10.17"]
[Round "9"]
[White "Alexander_Donchenko"]
[Black "Arystanner"]
[Result "0-1"]
[WhiteElo "2874"]
[BlackElo "2826"]
[TimeControl "180+1"]
[EndTime "9:47:54 PDT"]
[Termination "Arystanner won by checkmate"]

1. Nf3 {[%clk 0:03:00.9]} 1... d5 {[%clk 0:03:00.1]} 2. g3 {[%clk 0:03:01.2]}
2... b6 {[%clk 0:03:00.8]} 3. Bg2 {[%clk 0:03:01.4]} 3... Bb7 {[%clk 0:03:01.3]}
4. O-O {[%clk 0:03:01.6]} 4... Nd7 {[%clk 0:03:02]} 5. d4 {[%clk 0:03:01.4]}
5... e6 {[%clk 0:03:02.4]} 6. b3 {[%clk 0:03:00.2]} 6... Ngf6 {[%clk 0:03:02.8]}
7. c4 {[%clk 0:02:59.4]} 7... dxc4 {[%clk 0:03:02.9]} 8. bxc4 {[%clk 0:03:00]}
8... Be7 {[%clk 0:03:03.2]} 9. Nc3 {[%clk 0:02:59.8]} 9... c5 {[%clk 0:03:03.6]}
10. d5 {[%clk 0:02:59.5]} 10... exd5 {[%clk 0:03:02.3]} 11. cxd5 {[%clk
0:03:00.4]} 11... Bd6 {[%clk 0:02:57.6]} 12. Nb5 {[%clk 0:02:57.4]} 12... Bb8
{[%clk 0:02:53.4]} 13. e4 {[%clk 0:02:54.4]} 13... O-O {[%clk 0:02:53.6]} 14.
Re1 {[%clk 0:02:51.6]} 14... a6 {[%clk 0:02:49.9]} 15. Nc3 {[%clk 0:02:51.1]}
15... Re8 {[%clk 0:02:50.6]} 16. Bb2 {[%clk 0:02:44.2]} 16... b5 {[%clk
0:02:46.5]} 17. Qc2 {[%clk 0:02:43.7]} 17... Ne5 {[%clk 0:02:40]} 18. Rad1
{[%clk 0:02:39.9]} 18... c4 {[%clk 0:02:29.6]} 19. Nxe5 {[%clk 0:02:35.8]} 19...
Bxe5 {[%clk 0:02:30.5]} 20. f4 {[%clk 0:02:35]} 20... Qb6+ {[%clk 0:02:31.2]}
21. Qf2 {[%clk 0:02:27.5]} 21... Bc7 {[%clk 0:02:25.1]} 22. h3 {[%clk 0:02:10]}
22... b4 {[%clk 0:02:21.2]} 23. Na4 {[%clk 0:02:07.4]} 23... Qb5 {[%clk
0:02:04.9]} 24. Nc5 {[%clk 0:02:07]} 24... c3 {[%clk 0:02:02.9]} 25. Bc1 {[%clk
0:02:03.5]} 25... Bb6 {[%clk 0:01:57.6]} 26. Be3 {[%clk 0:02:02.9]} 26... Bxd5
{[%clk 0:01:57.8]} 27. a4 {[%clk 0:01:57.9]} 27... Qa5 {[%clk 0:01:46.1]} 28.
Kh2 {[%clk 0:01:26.2]} 28... Bxc5 {[%clk 0:01:43.2]} 29. Bxc5 {[%clk 0:01:24.8]}
29... Bxe4 {[%clk 0:01:43.2]} 30. Bd4 {[%clk 0:01:19.3]} 30... Bxg2 {[%clk
0:01:42.9]} 31. Qxg2 {[%clk 0:01:15.5]} 31... h6 {[%clk 0:01:32.4]} 32. Re5
{[%clk 0:01:13.5]} 32... Qxa4 {[%clk 0:01:28.2]} 33. Rde1 {[%clk 0:01:08.6]}
33... c2 {[%clk 0:01:25.7]} 34. Bb2 {[%clk 0:00:54.1]} 34... b3 {[%clk
0:01:22.7]} 35. Qf3 {[%clk 0:00:42]} 35... Rac8 {[%clk 0:01:22]} 36. g4 {[%clk
0:00:33.6]} 36... Qa2 {[%clk 0:01:19.3]} 37. Rxe8+ {[%clk 0:00:27.7]} 37... Rxe8
{[%clk 0:01:17.7]} 38. Rxe8+ {[%clk 0:00:26.6]} 38... Nxe8 {[%clk 0:01:18.6]}
39. Qc3 {[%clk 0:00:26.5]} 39... Qb1 {[%clk 0:01:11]} 40. Qe5 {[%clk 0:00:14.2]}
40... Nf6 {[%clk 0:01:09.3]} 41. g5 {[%clk 0:00:12.7]} 41... hxg5 {[%clk
0:01:08.5]} 42. fxg5 {[%clk 0:00:13.6]} 42... c1=Q {[%clk 0:01:04.5]} 43. Bxc1
{[%clk 0:00:13]} 43... Qc2+ {[%clk 0:01:05.2]} 44. Kg3 {[%clk 0:00:11.1]} 44...
Nh5+ {[%clk 0:01:05.7]} 45. Kh4 {[%clk 0:00:10.3]} 45... Qc4+ {[%clk 0:01:02]}
46. Kxh5 {[%clk 0:00:01.9]} 46... g6+ {[%clk 0:01:02.6]} 47. Kh6 {[%clk
0:00:02.5]} 47... Qh4# {[%clk 0:01:03.4]} 0-1

[Event "Early-Titled-Tuesday-Blitz-October-17-2023"]
[Site "Chess.com"]
[Date "2023.10.17"]
[Round "9"]
[White "ckgchess"]
[Black "DTChess"]
[Result "1-0"]
[WhiteElo "2875"]
[BlackElo "2589"]
[TimeControl "180+1"]
[EndTime "9:47:55 PDT"]
[Termination "ckgchess won on time"]

1. e4 {[%clk 0:03:00.9]} 1... c6 {[%clk 0:02:59.4]} 2. Nc3 {[%clk 0:02:59.6]}
2... d5 {[%clk 0:02:59.9]} 3. Nf3 {[%clk 0:03:00.4]} 3... Bg4 {[%clk 0:02:59.7]}
4. h3 {[%clk 0:03:00.6]} 4... Bxf3 {[%clk 0:02:59.6]} 5. Qxf3 {[%clk 0:03:01.5]}
5... e6 {[%clk 0:03:00.2]} 6. d4 {[%clk 0:03:01.6]} 6... Nf6 {[%clk 0:03:00.3]}
7. e5 {[%clk 0:03:00.8]} 7... Ng8 {[%clk 0:02:59.5]} 8. Be3 {[%clk 0:02:50.4]}
8... Nd7 {[%clk 0:02:59.3]} 9. O-O-O {[%clk 0:02:50.2]} 9... Ne7 {[%clk
0:02:58.1]} 10. g4 {[%clk 0:02:47.1]} 10... Qa5 {[%clk 0:02:56.2]} 11. Kb1
{[%clk 0:02:46.9]} 11... b5 {[%clk 0:02:55.9]} 12. Ne2 {[%clk 0:02:39.6]} 12...
Nb6 {[%clk 0:02:51.4]} 13. Nc1 {[%clk 0:02:39.2]} 13... Nc4 {[%clk 0:02:47.8]}
14. Qe2 {[%clk 0:02:30.8]} 14... Nc8 {[%clk 0:02:42.3]} 15. f4 {[%clk
0:02:29.1]} 15... N8b6 {[%clk 0:02:40.9]} 16. f5 {[%clk 0:02:19.1]} 16... Na4
{[%clk 0:02:35.8]} 17. Nb3 {[%clk 0:02:19.2]} 17... Qa6 {[%clk 0:01:52.1]} 18.
Bc1 {[%clk 0:02:18.6]} 18... Ba3 {[%clk 0:01:47]} 19. Qf3 {[%clk 0:01:58.2]}
19... Ncxb2 {[%clk 0:01:38.7]} 20. Re1 {[%clk 0:01:45.5]} 20... O-O-O {[%clk
0:01:27.6]} 21. fxe6 {[%clk 0:01:37.1]} 21... fxe6 {[%clk 0:01:26.5]} 22. Qf7
{[%clk 0:01:37.9]} 22... Rhe8 {[%clk 0:01:15.9]} 23. Re3 {[%clk 0:01:38.2]}
23... Re7 {[%clk 0:00:54.1]} 24. Qf3 {[%clk 0:01:35.8]} 24... Nc4 {[%clk
0:00:44.7]} 25. Bxc4 {[%clk 0:01:35.8]} 25... Bxc1 {[%clk 0:00:43]} 26. Bxb5
{[%clk 0:01:29.3]} 26... Qxb5 {[%clk 0:00:30.6]} 27. Rxc1 {[%clk 0:01:28]} 27...
Rb7 {[%clk 0:00:26.9]} 28. Qf1 {[%clk 0:01:18.4]} 28... Qb4 {[%clk 0:00:25.3]}
29. c4 {[%clk 0:01:18]} 29... Qa3 {[%clk 0:00:20.4]} 30. Qe2 {[%clk 0:01:11.8]}
30... Kb8 {[%clk 0:00:20.3]} 31. Qd2 {[%clk 0:00:46.8]} 31... Ka8 {[%clk
0:00:19.5]} 32. Ka1 {[%clk 0:00:46]} 32... Rdb8 {[%clk 0:00:19]} 33. Nc5 {[%clk
0:00:30.8]} 33... Qb4 {[%clk 0:00:04.4]} 34. Qxb4 {[%clk 0:00:31.1]} 34... Rxb4
{[%clk 0:00:04.7]} 35. Na6 {[%clk 0:00:31.9]} 1-0

[Event "Early-Titled-Tuesday-Blitz-October-17-2023"]
[Site "Chess.com"]
[Date "2023.10.17"]
[Round "9"]
[White "Ariadna_Atreides"]
[Black "Chessbard1972"]
[Result "1-0"]
[WhiteElo "2212"]
[BlackElo "2345"]
[TimeControl "180+1"]
[EndTime "9:47:59 PDT"]
[Termination "Ariadna_Atreides won by checkmate"]

1. d4 {[%clk 0:02:59.8]} 1... d5 {[%clk 0:02:59]} 2. Nf3 {[%clk 0:03:00.3]} 2...
c5 {[%clk 0:02:58.7]} 3. dxc5 {[%clk 0:02:58.1]} 3... Nc6 {[%clk 0:02:57.1]} 4.
a3 {[%clk 0:02:56.5]} 4... a5 {[%clk 0:02:56.8]} 5. e3 {[%clk 0:02:51.2]} 5...
e5 {[%clk 0:02:54.9]} 6. c4 {[%clk 0:02:43.1]} 6... Nf6 {[%clk 0:02:50.2]} 7.
Nc3 {[%clk 0:02:41.1]} 7... d4 {[%clk 0:02:49]} 8. Na4 {[%clk 0:02:31.1]} 8...
Bg4 {[%clk 0:02:44.1]} 9. Be2 {[%clk 0:02:28.3]} 9... Be7 {[%clk 0:02:34.5]} 10.
O-O {[%clk 0:02:27.2]} 10... Bxf3 {[%clk 0:02:27.9]} 11. Bxf3 {[%clk 0:02:26.1]}
11... e4 {[%clk 0:02:28.4]} 12. Bg4 {[%clk 0:02:17.6]} 12... d3 {[%clk
0:02:26.4]} 13. Rb1 {[%clk 0:01:42.6]} 13... Ne5 {[%clk 0:02:14.8]} 14. Bh3
{[%clk 0:01:37.5]} 14... Nxc4 {[%clk 0:02:05.8]} 15. b3 {[%clk 0:01:35.6]} 15...
Ne5 {[%clk 0:02:01]} 16. Bb2 {[%clk 0:01:34.5]} 16... Nc6 {[%clk 0:01:58.8]} 17.
Bf5 {[%clk 0:01:30.3]} 17... Qd5 {[%clk 0:01:55.9]} 18. g4 {[%clk 0:01:27.2]}
18... O-O {[%clk 0:01:48.5]} 19. Nb6 {[%clk 0:01:26.4]} 19... Qxc5 {[%clk
0:01:45.8]} 20. Nxa8 {[%clk 0:01:26]} 20... Rxa8 {[%clk 0:01:46]} 21. Bxf6
{[%clk 0:01:24.1]} 21... Bxf6 {[%clk 0:01:43.4]} 22. Bxe4 {[%clk 0:01:24.6]}
22... Rd8 {[%clk 0:01:42.9]} 23. Qf3 {[%clk 0:00:52.7]} 23... Ne5 {[%clk
0:01:38.4]} 24. Qf5 {[%clk 0:00:51.6]} 24... Qd6 {[%clk 0:01:17]} 25. g5 {[%clk
0:00:42.9]} 25... Bxg5 {[%clk 0:00:54.3]} 26. Qxg5 {[%clk 0:00:39.2]} 26... f5
{[%clk 0:00:54.1]} 27. Qxf5 {[%clk 0:00:33.7]} 27... g6 {[%clk 0:00:53.6]} 28.
Qh3 {[%clk 0:00:16.1]} 28... d2 {[%clk 0:00:51.5]} 29. Rfd1 {[%clk 0:00:14.4]}
29... Qf6 {[%clk 0:00:46.3]} 30. f4 {[%clk 0:00:13.6]} 30... Nd7 {[%clk
0:00:37.6]} 31. Rxd2 {[%clk 0:00:11.8]} 31... Qe7 {[%clk 0:00:36.8]} 32. Rbd1
{[%clk 0:00:11.1]} 32... Qxe4 {[%clk 0:00:35.6]} 33. Rxd7 {[%clk 0:00:11.1]}
33... Rxd7 {[%clk 0:00:31.8]} 34. Rxd7 {[%clk 0:00:12]} 34... Qb1+ {[%clk
0:00:31.2]} 35. Kf2 {[%clk 0:00:10.8]} 35... Qc2+ {[%clk 0:00:31.1]} 36. Kg3
{[%clk 0:00:08.5]} 36... h5 {[%clk 0:00:25.1]} 37. Qe6+ {[%clk 0:00:08.5]} 37...
Kh8 {[%clk 0:00:24.5]} 38. Qe8# {[%clk 0:00:08.3]} 1-0

[Event "Early-Titled-Tuesday-Blitz-October-17-2023"]
[Site "Chess.com"]
[Date "2023.10.17"]
[Round "9"]
[White "RETURNOFTHELAGGER"]
[Black "masterofpuppets2"]
[Result "1-0"]
[WhiteElo "2672"]
[BlackElo "2514"]
[TimeControl "180+1"]
[EndTime "9:48:01 PDT"]
[Termination "RETURNOFTHELAGGER won by resignation"]

1. e4 {[%clk 0:02:54.4]} 1... c5 {[%clk 0:02:59.3]} 2. Nf3 {[%clk 0:02:53.1]}
2... Nc6 {[%clk 0:02:59.3]} 3. b3 {[%clk 0:02:51.5]} 3... d6 {[%clk 0:02:53.4]}
4. Bb2 {[%clk 0:02:50.6]} 4... Nf6 {[%clk 0:02:53.8]} 5. Nc3 {[%clk 0:02:47.1]}
5... Bg4 {[%clk 0:02:28.6]} 6. h3 {[%clk 0:02:43.5]} 6... Bxf3 {[%clk 0:02:27]}
7. Qxf3 {[%clk 0:02:44.4]} 7... Nd4 {[%clk 0:02:21.6]} 8. Qd3 {[%clk 0:02:42.2]}
8... Nd7 {[%clk 0:02:06.4]} 9. f4 {[%clk 0:02:40.3]} 9... g6 {[%clk 0:01:50.5]}
10. O-O-O {[%clk 0:02:39]} 10... a6 {[%clk 0:01:45.1]} 11. Kb1 {[%clk
0:02:37.4]} 11... Bg7 {[%clk 0:01:44.4]} 12. g4 {[%clk 0:02:35.3]} 12... b5
{[%clk 0:01:39.8]} 13. h4 {[%clk 0:02:32.6]} 13... h5 {[%clk 0:01:34.8]} 14. g5
{[%clk 0:02:31.5]} 14... e6 {[%clk 0:01:32.3]} 15. Bh3 {[%clk 0:02:28.9]} 15...
Qb6 {[%clk 0:01:32]} 16. f5 {[%clk 0:02:25.9]} 16... Be5 {[%clk 0:01:08.7]} 17.
Rhf1 {[%clk 0:02:16.6]} 17... O-O-O {[%clk 0:01:04.5]} 18. fxg6 {[%clk
0:02:07.3]} 18... fxg6 {[%clk 0:01:04.2]} 19. Ne2 {[%clk 0:02:07.9]} 19... Rde8
{[%clk 0:00:41.2]} 20. Nxd4 {[%clk 0:02:06.1]} 20... Bxd4 {[%clk 0:00:41.6]} 21.
Rf7 {[%clk 0:01:56]} 21... Ne5 {[%clk 0:00:39.3]} 22. Qf1 {[%clk 0:01:50.4]}
22... Nxf7 {[%clk 0:00:28.1]} 23. Qxf7 {[%clk 0:01:50.8]} 23... Bxb2 {[%clk
0:00:24.4]} 24. Kxb2 {[%clk 0:01:51.7]} 24... Kb8 {[%clk 0:00:17.3]} 25. Bxe6
{[%clk 0:01:48.3]} 25... c4 {[%clk 0:00:06.5]} 26. Qxg6 {[%clk 0:01:45.7]} 26...
Qd4+ {[%clk 0:00:03.7]} 27. c3 {[%clk 0:01:42.8]} 27... Qe5 {[%clk 0:00:01.6]}
28. bxc4 {[%clk 0:01:40.4]} 28... Qxe6 {[%clk 0:00:01.5]} 29. Qg7 {[%clk
0:01:34.9]} 29... bxc4 {[%clk 0:00:01.5]} 30. Rb1 {[%clk 0:01:33.4]} 30... Qe7
{[%clk 0:00:02.1]} 31. Ka3+ {[%clk 0:01:33.7]} 31... Kc7 {[%clk 0:00:02.5]} 32.
Qd4 {[%clk 0:01:30.6]} 32... Rb8 {[%clk 0:00:02.8]} 33. Qa7+ {[%clk 0:01:27.3]}
33... Kc6 {[%clk 0:00:02.6]} 34. Qxe7 {[%clk 0:01:19.3]} 34... Rxb1 {[%clk
0:00:02.6]} 35. e5 {[%clk 0:01:17.3]} 35... dxe5 {[%clk 0:00:01.6]} 36. Qxe5
{[%clk 0:01:18.2]} 36... Rhb8 {[%clk 0:00:01.5]} 37. Qe6+ {[%clk 0:01:16.2]}
37... Kc5 {[%clk 0:00:01.6]} 38. Qxa6 {[%clk 0:01:11.7]} 38... R8b6 {[%clk
0:00:01.9]} 39. Qc8+ {[%clk 0:01:09.8]} 39... Kd5 {[%clk 0:00:02]} 40. Qf5+
{[%clk 0:01:07]} 40... Kc6 {[%clk 0:00:01.7]} 41. Qe4+ {[%clk 0:01:03.2]} 41...
Kc5 {[%clk 0:00:01.9]} 42. Qd4+ {[%clk 0:01:03.7]} 42... Kb5 {[%clk 0:00:02.5]}
43. Qd5+ {[%clk 0:01:04.1]} 43... Ka6 {[%clk 0:00:02.9]} 44. Qxc4+ {[%clk
0:01:04.1]} 44... R1b5 {[%clk 0:00:03.8]} 45. Ka4 {[%clk 0:01:03.7]} 45... Rb7
{[%clk 0:00:02.5]} 46. d4 {[%clk 0:00:58.8]} 1-0

[Event "Early-Titled-Tuesday-Blitz-October-17-2023"]
[Site "Chess.com"]
[Date "2023.10.17"]
[Round "9"]
[White "Josgar05"]
[Black "DanyKopy"]
[Result "0-1"]
[WhiteElo "2367"]
[BlackElo "2535"]
[TimeControl "180+1"]
[EndTime "9:48:01 PDT"]
[Termination "DanyKopy won by checkmate"]

1. Nf3 {[%clk 0:03:00.9]} 1... d5 {[%clk 0:02:55.7]} 2. b3 {[%clk 0:03:01.8]}
2... c5 {[%clk 0:02:51.3]} 3. Bb2 {[%clk 0:02:54.4]} 3... Nf6 {[%clk 0:02:51]}
4. g3 {[%clk 0:02:53.9]} 4... Bf5 {[%clk 0:02:49.1]} 5. Bg2 {[%clk 0:02:54.2]}
5... Nc6 {[%clk 0:02:48.5]} 6. O-O {[%clk 0:02:54.7]} 6... h6 {[%clk 0:02:46.4]}
7. Re1 {[%clk 0:02:54.9]} 7... e6 {[%clk 0:02:46.2]} 8. d3 {[%clk 0:02:54.6]}
8... Be7 {[%clk 0:02:46.2]} 9. Nbd2 {[%clk 0:02:54.8]} 9... O-O {[%clk
0:02:46.4]} 10. Ne5 {[%clk 0:02:55.3]} 10... Rc8 {[%clk 0:02:41.6]} 11. e4
{[%clk 0:02:54.6]} 11... Bh7 {[%clk 0:02:39.7]} 12. Nxc6 {[%clk 0:02:53]} 12...
Rxc6 {[%clk 0:02:38.6]} 13. e5 {[%clk 0:02:53.3]} 13... Nd7 {[%clk 0:02:33.9]}
14. Qe2 {[%clk 0:02:53.3]} 14... b5 {[%clk 0:02:32]} 15. a4 {[%clk 0:02:53.1]}
15... a6 {[%clk 0:02:31.7]} 16. axb5 {[%clk 0:02:51.7]} 16... axb5 {[%clk
0:02:32.6]} 17. c4 {[%clk 0:02:52.2]} 17... bxc4 {[%clk 0:02:28.8]} 18. dxc4
{[%clk 0:02:52.3]} 18... Nb6 {[%clk 0:02:22.7]} 19. Red1 {[%clk 0:02:48.5]}
19... Rc8 {[%clk 0:02:13.3]} 20. Rac1 {[%clk 0:02:39.4]} 20... d4 {[%clk
0:01:59]} 21. Ne4 {[%clk 0:02:39.2]} 21... Nd7 {[%clk 0:01:55.9]} 22. f4 {[%clk
0:02:35.1]} 22... Rb8 {[%clk 0:01:55.7]} 23. Rd3 {[%clk 0:02:26.1]} 23... Ra8
{[%clk 0:01:50.1]} 24. b4 {[%clk 0:02:22.9]} 24... Ra2 {[%clk 0:01:42.1]} 25.
Rd2 {[%clk 0:02:22.6]} 25... cxb4 {[%clk 0:01:39.4]} 26. Bxd4 {[%clk 0:02:18.4]}
26... Rxd2 {[%clk 0:01:39]} 27. Qxd2 {[%clk 0:02:18.7]} 27... Nc5 {[%clk
0:01:27]} 28. Qe3 {[%clk 0:01:57.2]} 28... Bxe4 {[%clk 0:01:03.4]} 29. Bxe4
{[%clk 0:01:57]} 29... Qc7 {[%clk 0:01:03.5]} 30. Bb1 {[%clk 0:01:53.7]} 30...
Rd8 {[%clk 0:01:00.9]} 31. Rd1 {[%clk 0:01:52.9]} 31... g6 {[%clk 0:00:48.9]}
32. h4 {[%clk 0:01:51]} 32... h5 {[%clk 0:00:42.7]} 33. Kh2 {[%clk 0:01:50.8]}
33... Na4 {[%clk 0:00:37.4]} 34. Qb3 {[%clk 0:01:37.8]} 34... Nc3 {[%clk
0:00:20.8]} 35. Bxc3 {[%clk 0:01:37.5]} 35... Rxd1 {[%clk 0:00:20.8]} 36. Qxd1
{[%clk 0:01:36.5]} 36... bxc3 {[%clk 0:00:21.3]} 37. Qe2 {[%clk 0:01:35]} 37...
Qc5 {[%clk 0:00:16.1]} 38. Bc2 {[%clk 0:01:31.6]} 38... Qd4 {[%clk 0:00:16.1]}
39. Kg2 {[%clk 0:01:29.2]} 39... Bc5 {[%clk 0:00:15.9]} 40. Qe4 {[%clk
0:01:25.2]} 40... Qf2+ {[%clk 0:00:15.3]} 41. Kh3 {[%clk 0:01:25.7]} 41... Qf1+
{[%clk 0:00:14.1]} 42. Qg2 {[%clk 0:01:25.3]} 42... Qxc4 {[%clk 0:00:14.1]} 43.
Qe4 {[%clk 0:01:23.5]} 43... Qf1+ {[%clk 0:00:13.1]} 44. Qg2 {[%clk 0:01:23.9]}
44... Qc1 {[%clk 0:00:12.3]} 45. Qa8+ {[%clk 0:01:23.5]} 45... Kg7 {[%clk
0:00:12.1]} 46. Qg2 {[%clk 0:01:23.8]} 46... Be3 {[%clk 0:00:10.5]} 47. Kh2
{[%clk 0:01:23.6]} 47... Bd2 {[%clk 0:00:10.4]} 48. Qe4 {[%clk 0:01:23.8]} 48...
Qf1 {[%clk 0:00:09.7]} 49. Bd3 {[%clk 0:01:22.3]} 49... Qf2+ {[%clk 0:00:09]}
50. Qg2 {[%clk 0:01:22.8]} 50... Qe3 {[%clk 0:00:09]} 51. Qe4 {[%clk 0:01:22.2]}
51... Qf2+ {[%clk 0:00:09.1]} 52. Qg2 {[%clk 0:01:22.3]} 52... Qc5 {[%clk
0:00:09.4]} 53. Qe4 {[%clk 0:01:21.5]} 53... Be1 {[%clk 0:00:09.7]} 54. Qg2
{[%clk 0:01:20.2]} 54... Qe3 {[%clk 0:00:07.6]} 55. Qe4 {[%clk 0:01:18.6]} 55...
Qxg3+ {[%clk 0:00:07]} 56. Kh1 {[%clk 0:01:18.2]} 56... Qxh4+ {[%clk 0:00:07.2]}
57. Kg2 {[%clk 0:01:18.5]} 57... Qg3+ {[%clk 0:00:07.4]} 58. Kf1 {[%clk
0:01:18.9]} 58... Qf2# {[%clk 0:00:07.4]} 0-1

[Event "Early-Titled-Tuesday-Blitz-October-17-2023"]
[Site "Chess.com"]
[Date "2023.10.17"]
[Round "9"]
[White "invisible_s0ul"]
[Black "McCarthyStone"]
[Result "0-1"]
[WhiteElo "2274"]
[BlackElo "2391"]
[TimeControl "180+1"]
[EndTime "9:48:01 PDT"]
[Termination "McCarthyStone won by resignation"]

1. e4 {[%clk 0:03:00.9]} 1... e5 {[%clk 0:02:59.3]} 2. Nf3 {[%clk 0:03:01]} 2...
d6 {[%clk 0:02:59.7]} 3. d4 {[%clk 0:03:00.3]} 3... exd4 {[%clk 0:03:00.6]} 4.
Nxd4 {[%clk 0:03:01]} 4... Nf6 {[%clk 0:03:01.1]} 5. Nc3 {[%clk 0:03:01.5]} 5...
g6 {[%clk 0:03:01.6]} 6. Bg5 {[%clk 0:02:58.5]} 6... Bg7 {[%clk 0:03:02]} 7. Nd5
{[%clk 0:02:55.3]} 7... c6 {[%clk 0:02:52.1]} 8. Nxf6+ {[%clk 0:02:51.9]} 8...
Bxf6 {[%clk 0:02:53]} 9. Bxf6 {[%clk 0:02:51.5]} 9... Qxf6 {[%clk 0:02:53.9]}
10. Be2 {[%clk 0:02:46]} 10... O-O {[%clk 0:02:53.3]} 11. O-O {[%clk 0:02:46.5]}
11... Re8 {[%clk 0:02:53.7]} 12. f3 {[%clk 0:02:41.1]} 12... Nd7 {[%clk
0:02:48]} 13. c3 {[%clk 0:02:30.8]} 13... Nb6 {[%clk 0:02:44]} 14. a4 {[%clk
0:02:22.4]} 14... a5 {[%clk 0:02:35.6]} 15. Qb3 {[%clk 0:02:21.8]} 15... Nd7
{[%clk 0:02:35.5]} 16. Rad1 {[%clk 0:02:19]} 16... Nc5 {[%clk 0:02:35.8]} 17.
Qc2 {[%clk 0:02:15.8]} 17... Qf4 {[%clk 0:02:22.1]} 18. Bc4 {[%clk 0:01:57.2]}
18... Kg7 {[%clk 0:02:11.2]} 19. Ne2 {[%clk 0:01:46]} 19... Qe3+ {[%clk
0:02:09.8]} 20. Kh1 {[%clk 0:01:46.6]} 20... d5 {[%clk 0:02:05.8]} 21. exd5
{[%clk 0:01:45.1]} 21... cxd5 {[%clk 0:02:06.6]} 22. Rxd5 {[%clk 0:01:41.8]}
22... Be6 {[%clk 0:02:00.7]} 23. Nd4 {[%clk 0:01:04]} 23... Bxd5 {[%clk
0:01:56.9]} 24. Bxd5 {[%clk 0:01:04.9]} 24... Rad8 {[%clk 0:01:49.2]} 25. Bc4
{[%clk 0:01:03.4]} 25... Rc8 {[%clk 0:01:46.8]} 26. Bb5 {[%clk 0:00:59.7]} 26...
Red8 {[%clk 0:01:44.5]} 27. h3 {[%clk 0:00:50.3]} 27... Ne6 {[%clk 0:01:43.5]}
28. Nxe6+ {[%clk 0:00:48.6]} 28... Qxe6 {[%clk 0:01:44.4]} 29. Qf2 {[%clk
0:00:41.8]} 29... Rd6 {[%clk 0:01:40.3]} 30. Re1 {[%clk 0:00:40.7]} 30... Qf6
{[%clk 0:01:40.2]} 31. Qa7 {[%clk 0:00:37.1]} 31... b6 {[%clk 0:01:32.5]} 32.
Qb7 {[%clk 0:00:33.6]} 32... Rcd8 {[%clk 0:01:32.3]} 33. Qc7 {[%clk 0:00:07.4]}
33... Rd1 {[%clk 0:01:25]} 34. Rxd1 {[%clk 0:00:07.9]} 34... Rxd1+ {[%clk
0:01:25.6]} 35. Kh2 {[%clk 0:00:08.5]} 35... Qd6+ {[%clk 0:01:26.1]} 36. Qxd6
{[%clk 0:00:07.8]} 36... Rxd6 {[%clk 0:01:27]} 37. b3 {[%clk 0:00:03.6]} 37...
Rd2 {[%clk 0:01:23.9]} 38. Bc4 {[%clk 0:00:02.7]} 38... Rc2 {[%clk 0:01:23.1]}
39. Kg3 {[%clk 0:00:03.4]} 39... Kf6 {[%clk 0:01:20.5]} 40. h4 {[%clk
0:00:03.3]} 40... h6 {[%clk 0:01:17]} 41. Kh3 {[%clk 0:00:03.5]} 41... Rxc3
{[%clk 0:01:16.3]} 42. Kg4 {[%clk 0:00:02.4]} 42... Ke7 {[%clk 0:01:11.6]} 43.
g3 {[%clk 0:00:02.8]} 43... f5+ {[%clk 0:01:11.2]} 44. Kf4 {[%clk 0:00:03.4]}
44... Kf6 {[%clk 0:01:11.7]} 45. g4 {[%clk 0:00:03.3]} 45... g5+ {[%clk
0:01:12.2]} 46. hxg5+ {[%clk 0:00:03.9]} 46... hxg5+ {[%clk 0:01:13.1]} 47. Kg3
{[%clk 0:00:04.2]} 47... f4+ {[%clk 0:01:13.7]} 48. Kg2 {[%clk 0:00:04.9]} 48...
Rc2+ {[%clk 0:01:13.6]} 49. Kf1 {[%clk 0:00:05.5]} 49... Ke5 {[%clk 0:01:14.2]}
50. Ke1 {[%clk 0:00:05.2]} 50... Kd4 {[%clk 0:01:14.5]} 51. Kd1 {[%clk
0:00:05.1]} 51... Rb2 {[%clk 0:01:05.6]} 52. Kc1 {[%clk 0:00:04.2]} 52... Rf2
{[%clk 0:01:05.7]} 0-1